bitfinex-derivatives/quotes_SOLF0:USTF0_20250425
["timestamp","ask_amount","ask_price","bid_price","bid_amount"]
[1745580891476,8.76085838,153.92,153.8,1.13075123]
[1745580891676,8.76085838,153.9,153.81,5.9579]
[1745580892873,8.76085838,153.9,153.86,6.4969]
[1745580893071,8.76085838,153.92,153.82,8.76085838]
[1745580893577,8.76085838,153.92,153.87,6.4968]
[1745580895074,8.76085838,153.92,153.82,8.76085838]
[1745580895275,8.76085838,153.92,153.84,8.76085838]
[1745580895874,8.76085838,153.92,153.81,5.9579]
[1745580896075,1.8928,153.98,153.83,8.76085838]
[1745580896376,8.76085838,153.91,153.86,6.4971]
[1745580897476,8.76085838,153.91,153.83,8.76085838]
[1745580898076,8.76085838,153.91,153.86,6.4969]
[1745580898373,8.76085838,153.91,153.83,8.76085838]
[1745580898671,8.76085838,153.91,153.87,6.4968]
[1745580898874,8.76085838,153.91,153.82,8.76085838]
[1745580899472,8.76085838,153.91,153.87,6.4968]
[1745580901577,8.76085838,153.91,153.86,6.4971]
[1745580902077,1.8928,153.98,153.82,8.76085838]
[1745580902277,8.76085838,153.92,153.82,8.76085838]
[1745580902775,8.76085838,153.92,153.87,6.4966]
[1745580903079,8.76085838,153.92,153.81,5.9579]
[1745580903279,5.62054423,153.89,153.86,6.4971]
[1745580903471,5.62054423,153.89,153.84,5.62054423]
[1745580903777,5.62054423,153.9,153.87,6.4967]
[1745580904577,5.62054423,153.9,153.86,6.4971]
[1745580904874,5.62054423,153.9,153.85,5.62054423]
[1745580905378,5.62054423,153.9,153.86,6.4971]
[1745580906278,5.62054423,153.88,153.85,6.4975]
[1745580907080,5.62054423,153.88,153.86,6.4973]
[1745580907579,12.11674423,153.89,153.87,6.4969]
[1745580907880,5.62054423,153.9,153.85,5.62054423]
[1745580908080,5.62054423,153.9,153.87,6.4965]
[1745580910282,5.62054423,153.9,153.88,6.4964]
[1745580910478,5.62054423,153.9,153.85,5.62054423]
[1745580911082,5.62054423,153.9,153.87,6.4967]
[1745580912579,5.62054423,153.88,153.81,5.9579]
[1745580912880,5.62054423,153.84,153.81,1.9344]
[1745580913080,5.62054423,153.84,153.8,5.62054423]
[1745580913582,5.62054423,153.84,153.82,6.4987]
[1745580914077,5.62054423,153.84,153.8,5.62054423]
[1745580914078,12.11934423,153.83,153.8,6.4997]
[1745580914381,5.62054423,153.82,153.77,5.62054423]
[1745580914582,5.62054423,153.82,153.78,6.5003]
[1745580914784,5.62054423,153.81,153.78,6.5003]
[1745580915283,12.12014423,153.81,153.78,6.5003]
[1745580916184,5.62054423,153.82,153.77,5.62054423]
[1745580916482,5.62054423,153.83,153.78,5.62054423]
[1745580917084,5.62054423,153.83,153.8,6.4996]
[1745580917280,5.62054423,153.82,153.77,5.62054423]
[1745580917486,5.62054423,153.81,153.77,5.62054423]
[1745580917683,12.12024423,153.81,153.78,6.5004]
[1745580918187,6.4999,153.8,153.77,6.5009]
[1745580918988,12.12044423,153.8,153.77,6.5009]
[1745580919183,6.5007,153.78,153.72,356.9033]
[1745580919383,5.62054423,153.79,153.75,5.62054423]
[1745580919684,12.12054423,153.8,153.77,6.5008]
[1745580919989,5.62054423,153.8,153.75,5.62054423]
[1745580920187,5.62054423,153.8,153.76,5.62054423]
[1745580920685,5.62054423,153.8,153.78,6.5005]
[1745580920986,13.24271,153.89,153.77,5.62054423]
[1745580921286,5.62054423,153.82,153.79,6.5]
[1745580921585,5.62054423,153.82,153.78,5.62054423]
[1745580921786,5.62054423,153.82,153.79,6.4999]
[1745580922090,5.62054423,153.82,153.72,1.9033]
[1745580922286,5.62054423,153.8,153.76,5.62054423]
[1745580922688,5.62054423,153.81,153.77,5.62054423]
[1745580923385,5.62054423,153.82,153.78,5.62054423]
[1745580923586,5.62054423,153.83,153.78,5.62054423]
[1745580923786,5.62054423,153.82,153.78,5.62054423]
[1745580923989,5.62054423,153.82,153.79,6.5]
[1745580925690,5.62054423,153.82,153.8,6.4997]
[1745580925886,5.62054423,153.81,153.8,6.4997]
[1745580926190,5.62054423,153.82,153.77,5.62054423]
[1745580926390,5.62054423,153.82,153.78,5.62054423]
[1745580926790,5.62054423,153.82,153.8,6.4997]
[1745580927893,32.71271,153.89,153.8,6.4997]
[1745580928096,5.62054423,153.82,153.8,6.4997]
[1745580928894,5.62054423,153.83,153.81,6.4993]
[1745580929290,0.25031,153.89,153.8,5.62054423]
[1745580929596,5.62054423,153.85,153.82,6.4988]
[1745580929896,5.62054423,153.85,153.8,5.62054423]
[1745580930194,5.62054423,153.85,153.82,6.4986]
[1745580931392,5.62054423,153.84,153.82,6.4986]
[1745580931595,5.62054423,153.84,153.81,6.4992]
[1745580931795,5.62054423,153.82,153.72,1.9033]
[1745580931996,5.62054423,153.78,153.77,6.5008]
[1745580932290,5.62054423,153.79,153.75,5.62054423]
[1745580932695,5.62054423,153.8,153.78,6.5006]
[1745580934098,5.62054423,153.81,153.79,6.5002]
[1745580934694,5.62054423,153.81,153.8,6.4998]
[1745580934901,5.62054423,153.82,153.78,5.62054423]
[1745580935598,5.62054423,153.82,153.8,6.4996]
[1745580936398,5.62054423,153.85,153.81,5.62054423]
[1745580936592,5.62054423,153.85,153.8,5.62054423]
[1745580936789,5.62054423,153.84,153.8,5.62054423]
[1745580937400,5.62054423,153.84,153.74,13.0039]
[1745580937697,5.62054423,153.84,153.8,5.62054423]
[1745580939101,5.62054423,153.84,153.81,6.4991]
[1745580939699,5.62054423,153.84,153.82,6.499]
[1745580941400,5.62054423,153.84,153.74,13.0039]
[1745580941606,5.62054423,153.8,153.72,1.9033]
[1745580941798,5.62054423,153.8,153.75,5.62054423]
[1745580942002,5.62054423,153.8,153.78,6.5007]
[1745580942503,5.62054423,153.8,153.76,5.62054423]
[1745580943404,5.62054423,153.8,153.79,6.5002]
[1745580944507,5.62054423,153.8,153.72,1.9033]
[1745580944705,5.62054423,153.78,153.73,5.62054423]
[1745580944902,5.62054423,153.78,153.76,6.5013]
[1745580945604,6.5005,153.79,153.77,6.5011]
[1745580945807,5.62054423,153.81,153.76,5.62054423]
[1745580946102,5.62054423,153.81,153.78,6.5004]
[1745580946308,12.12014423,153.81,153.78,6.5004]
[1745580946606,5.62054423,153.81,153.79,6.5001]
[1745580947009,5.62054423,153.84,153.8,5.62054423]
[1745580947308,12.11894423,153.84,153.81,6.4991]
[1745580948208,12.11894423,153.84,153.82,6.499]
[1745580948410,5.62054423,153.85,153.8,5.62054423]
[1745580948606,7.63064423,153.86,153.81,5.62054423]
[1745580948911,6.4973,153.86,153.82,5.62054423]
[1745580949209,6.4973,153.86,153.83,6.4983]
[1745580949413,6.4973,153.86,153.83,12.11884423]
[1745580949709,6.4973,153.86,153.83,5.62054423]
[1745580950009,12.38795423,153.87,153.84,6.4981]
[1745580950204,5.89095423,153.87,153.84,6.4981]
[1745580950410,5.62054423,153.85,153.81,5.62054423]
[1745580950614,5.62054423,153.86,153.81,5.62054423]
[1745580951010,12.11804423,153.86,153.83,6.4983]
[1745580951212,5.62054423,153.86,153.78,1.9532]
[1745580951511,5.62054423,153.86,153.81,5.62054423]
[1745580951812,5.62054423,153.86,153.82,5.62054423]
[1745580952211,12.11814423,153.86,153.83,6.4985]
[1745580952412,5.62054423,153.86,153.83,6.4985]
[1745580952812,6.4977,153.85,153.83,6.4985]
[1745580953013,5.62054423,153.86,153.83,6.4985]
[1745580953609,5.62054423,153.86,153.82,6.4989]
[1745580953815,5.62054423,153.84,153.79,5.62054423]
[1745580954114,5.62054423,153.83,153.81,6.4991]
[1745580955210,12.11894423,153.84,153.79,5.62054423]
[1745580955512,12.11844423,153.85,153.8,5.62054423]
[1745580955713,5.62054423,153.84,153.8,5.62054423]
[1745580955910,12.11874423,153.84,153.8,5.62054423]
[1745580956111,5.62054423,153.84,153.8,5.62054423]
[1745580956310,5.62054423,153.85,153.81,5.62054423]
[1745580956513,6.4978,153.85,153.82,5.62054423]
[1745580956816,6.4978,153.85,153.82,12.11934423]
[1745580957112,12.11804423,153.86,153.82,5.62054423]
[1745580957512,12.11804423,153.86,153.83,6.4983]
[1745580957908,6.4982,153.84,153.81,6.4992]
[1745580958212,6.4982,153.84,153.8,5.62054423]
[1745580958709,6.4982,153.84,153.81,6.4993]
[1745580958912,6.4982,153.84,153.81,5.62054423]
[1745580959509,12.11844423,153.85,153.82,6.4987]
[1745580959711,6.4979,153.85,153.81,5.62054423]
[1745580960414,12.11804423,153.86,153.83,6.4983]
[1745580960613,12.11804423,153.86,153.82,5.62054423]
[1745580961009,5.62054423,153.87,153.85,6.4975]
[1745580961210,7.66144423,153.88,153.85,6.4975]
[1745580961412,5.62054423,153.9,153.86,5.62054423]
[1745580961710,6.4958,153.9,153.87,6.4966]
[1745580961911,5.62054423,153.91,153.87,6.4966]
[1745580962306,5.62054423,153.91,153.86,5.62054423]
[1745580962307,6.496,153.9,153.86,5.62054423]
[1745580962508,5.62054423,153.92,153.88,5.62054423]
[1745580962710,5.62054423,153.91,153.81,12.9983]
[1745580962914,6.496,153.89,153.87,6.4969]
[1745580963413,12.11634423,153.9,153.88,6.4964]
[1745580963615,6.4958,153.9,153.88,6.4964]
[1745580964513,6.4958,153.9,153.87,6.4967]
[1745580964720,6.4958,153.9,153.86,5.62054423]
[1745580965121,6.4958,153.9,153.88,6.4963]
[1745580966218,19.47,153.98,153.9,6.4953]
[1745580966418,5.62054423,153.95,153.91,5.62054423]
[1745580966919,5.62054423,153.95,153.91,12.11554423]
[1745580967415,5.62054423,153.96,153.92,5.62054423]
[1745580967811,5.62054423,153.96,153.85,12.995]
[1745580968013,6.4951,153.92,153.89,6.4958]
[1745580968619,6.4945,153.93,153.9,6.4955]
[1745580968920,5.62054423,153.94,153.9,6.4955]
[1745580969422,6.4944,153.93,153.9,6.4955]
[1745580970020,6.4944,153.93,153.9,12.11604423]
[1745580970422,6.4941,153.94,153.91,6.4951]
[1745580970721,5.62054423,153.96,153.92,5.62054423]
[1745580972419,6.494,153.94,153.92,5.62054423]
[1745580972628,5.62054423,153.95,153.91,5.62054423]
[1745580973419,5.62054423,153.96,153.91,5.62054423]
[1745580973724,9.52124423,153.97,153.92,5.62054423]
[1745580973924,9.52124423,153.97,153.93,5.62054423]
[1745580974620,6.4931,153.96,153.93,12.11464423]
[1745580974825,9.52124423,153.97,153.93,12.11464423]
[1745580975125,6.4938,153.95,153.92,6.4945]
[1745580975325,6.4938,153.95,153.93,5.62054423]
[1745580976424,6.4933,153.96,153.93,12.11464423]
[1745580976624,1.13060429,154.06,153.84,5.8025]
[1745580976625,5.62054423,153.99,153.94,5.62054423]
[1745580976824,5.62054423,153.99,153.86,12.9941]
[1745580976825,6.4929,153.97,153.95,12.11384423]
[1745580977024,5.62054423,153.99,153.95,5.62054423]
[1745580977225,5.62054423,153.99,153.95,12.11394423]
[1745580977418,5.62054423,153.99,153.94,5.62054423]
[1745580977824,6.4931,153.96,153.94,12.11424423]
[1745580978133,5.62054423,153.98,153.93,5.62054423]
[1745580978422,6.4939,153.95,153.92,12.11504423]
[1745580978827,5.62054423,153.96,153.92,12.11504423]
[1745580979026,6.4936,153.95,153.92,12.11504423]
[1745580979324,6.4936,153.95,153.93,12.11484423]
[1745580979926,6.4934,153.96,153.94,6.4939]
[1745580980224,5.62054423,153.98,153.94,12.11444423]
[1745580980424,5.62054423,153.99,153.94,12.11444423]
[1745580981227,6.4934,153.96,153.94,5.62054423]
[1745580981627,5.62054423,153.98,153.94,5.62054423]
[1745580982829,5.62054423,153.97,153.86,12.9941]
[1745580983029,5.62054423,153.96,153.92,5.62054423]
[1745580983224,6.4936,153.95,153.92,5.62054423]
[1745580983528,5.62054423,153.96,153.92,12.11504423]
[1745580983726,5.62054423,153.95,153.91,5.62054423]
[1745580983933,5.62054423,153.94,153.9,5.62054423]
[1745580984227,30.56054423,153.94,153.89,5.62054423]
[1745580984829,6.4951,153.92,153.89,12.11634423]
[1745580985229,6.4951,153.92,153.89,5.62054423]
[1745580985528,6.4951,153.92,153.9,12.11594423]
[1745580986629,6.4951,153.92,153.9,5.62054423]
[1745580987132,6.4951,153.92,153.9,12.11614423]
[1745580987430,24.94,153.94,153.91,5.62054423]
[1745580987627,5.62054423,153.96,153.92,5.62054423]
[1745580987828,6.4943,153.93,153.92,5.62054423]
[1745580988727,6.494,153.94,153.92,5.62054423]
[1745580989731,6.494,153.94,153.92,12.11524423]
[1745580990133,6.494,153.94,153.91,5.62054423]
[1745580990533,6.494,153.94,153.91,12.11544423]
[1745580991734,6.494,153.94,153.92,6.4947]
[1745580992036,12.11414423,153.95,153.91,5.62054423]
[1745580992333,24.94,153.97,153.93,12.11464423]
[1745580992534,6.4933,153.96,153.93,5.62054423]
[1745580992734,6.4933,153.96,153.94,12.11414423]
[1745580993029,24.94,153.97,153.94,5.62054423]
[1745580993332,24.94,153.97,153.95,5.62054423]
[1745580994335,24.94,153.97,153.94,5.62054423]
[1745580994835,6.4931,153.96,153.94,12.11424423]
[1745580996236,31.4328,153.97,153.94,12.11424423]
[1745580996937,31.4328,153.97,153.95,6.4934]
[1745580997937,31.4328,153.97,153.95,12.11394423]
[1745580998137,24.94,153.97,153.95,5.62054423]
[1745580998329,6.4924,153.98,153.95,5.62054423]
[1745580998533,5.62054423,153.99,153.95,5.62054423]
[1745580998741,6.4929,153.97,153.95,12.11384423]
[1745580999739,5.62054423,153.98,153.94,5.62054423]
[1745581000239,6.4933,153.96,153.94,12.11444423]
[1745581000539,5.62054423,153.97,153.93,5.62054423]
[1745581000740,6.4937,153.95,153.93,12.11464423]
[1745581001035,5.62054423,153.95,153.91,5.62054423]
[1745581001240,6.494,153.94,153.91,12.11544423]
[1745581001741,5.62054423,153.95,153.91,12.11544423]
[1745581002241,6.4945,153.93,153.91,12.11544423]
[1745581002642,6.4941,153.94,153.92,6.4947]
[1745581003442,6.4941,153.94,153.92,12.11524423]
[1745581005438,6.4937,153.95,153.92,5.62054423]
[1745581005742,24.94,153.96,153.92,5.62054423]
[1745581006041,6.4937,153.95,153.92,12.11494423]
[1745581006242,24.94,153.96,153.92,12.11494423]
[1745581006538,6.4936,153.95,153.92,12.11494423]
[1745581006741,30.56054423,153.96,153.91,5.62054423]
[1745581007339,30.56054423,153.96,153.91,12.11564423]
[1745581007844,6.4941,153.94,153.91,12.11564423]
[1745581008245,30.56054423,153.96,153.91,5.62054423]
[1745581008545,6.4942,153.94,153.91,5.62054423]
[1745581008947,6.4942,153.94,153.91,12.11564423]
[1745581009244,6.4944,153.93,153.91,12.11564423]
[1745581009747,6.4942,153.94,153.91,12.11564423]
[1745581010340,5.62054423,153.92,153.86,5.62054423]
[1745581010546,5.62054423,153.87,153.82,5.62054423]
[1745581010747,5.62054423,153.87,153.83,6.4983]
[1745581011248,5.62054423,153.86,153.81,32.8412]
[1745581011447,5.62054423,153.85,153.81,7.46254423]
[1745581011639,5.62054423,153.86,153.82,5.62054423]
[1745581012244,5.62054423,153.86,153.8,3.8904]
[1745581012446,5.62054423,153.83,153.79,5.62054423]
[1745581012745,24.5,153.88,153.79,5.62054423]
[1745581012746,5.62054423,153.84,153.79,5.62054423]
[1745581012945,6.4983,153.84,153.81,6.4993]
[1745581013146,5.62054423,153.86,153.82,5.62054423]
[1745581013949,6.4978,153.85,153.82,12.11924423]
[1745581015650,5.62054423,153.86,153.82,12.11924423]
[1745581016148,5.62054423,153.86,153.82,5.62054423]
[1745581016945,6.4984,153.84,153.82,5.62054423]
[1745581017448,5.62054423,153.86,153.81,6.4992]
[1745581017449,5.62054423,153.85,153.81,12.11974423]
[1745581018050,5.62054423,153.85,153.81,5.62054423]
[1745581018549,5.62054423,153.85,153.8,12.12024423]
[1745581018751,5.62054423,153.84,153.8,12.12024423]
[1745581018950,6.4988,153.83,153.8,12.12024423]
[1745581019751,5.62054423,153.84,153.79,24.52]
[1745581019752,6.4983,153.84,153.81,12.11974423]
[1745581020245,24.5,153.88,153.83,5.62054423]
[1745581020548,5.62054423,153.87,153.82,5.62054423]
[1745581020950,6.4981,153.84,153.82,5.62054423]
[1745581021151,5.62054423,153.86,153.82,5.62054423]
[1745581022454,6.4986,153.83,153.82,5.62054423]
[1745581023361,6.4993,153.82,153.81,5.62054423]
[1745581023555,5.62054423,153.84,153.8,5.62054423]
[1745581024356,5.62054423,153.84,153.8,12.12024423]
[1745581024656,5.6526,153.87,153.81,5.62054423]
[1745581024657,6.4986,153.83,153.81,5.62054423]
[1745581024856,6.4986,153.83,153.82,5.62054423]
[1745581026260,5.62054423,153.83,153.76,28.309]
[1745581026463,5.62054423,153.84,153.8,5.62054423]
[1745581026665,30.14054423,153.84,153.8,5.62054423]
[1745581026964,6.4993,153.82,153.8,5.62054423]
[1745581027567,6.4987,153.83,153.81,5.62054423]
[1745581027864,24.52,153.84,153.82,5.62054423]
[1745581028064,6.4986,153.83,153.82,5.62054423]
[1745581028366,24.52,153.84,153.81,5.62054423]
[1745581028666,6.499,153.82,153.81,5.62054423]
[1745581028966,6.499,153.82,153.79,6.5]
[1745581029167,5.62054423,153.83,153.76,28.309]
[1745581029368,5.62054423,153.83,153.79,5.62054423]
[1745581029562,5.62054423,153.82,153.79,5.62054423]
[1745581029764,5.62054423,153.83,153.79,5.62054423]
[1745581029964,6.4998,153.8,153.79,5.62054423]
[1745581031071,6.5004,153.79,153.78,5.62054423]
[1745581032473,5.62054423,153.79,153.71,26.4181]
[1745581032772,6.5023,153.75,153.72,6.503]
[1745581032974,5.62054423,153.75,153.72,5.62054423]
[1745581033177,5.62054423,153.74,153.7,5.62054423]
[1745581033472,5.62054423,153.73,153.69,5.62054423]
[1745581033673,5.62054423,153.72,153.68,5.62054423]
[1745581033863,30.14054423,153.72,153.68,5.62054423]
[1745581034069,30.14054423,153.72,153.67,12.12554423]
[1745581034270,12.12434423,153.71,153.67,12.12554423]
[1745581034567,30.14054423,153.72,153.68,5.62054423]
[1745581034773,24.52,153.75,153.71,5.62054423]
[1745581034977,30.14054423,153.75,153.7,5.62054423]
[1745581035169,5.62054423,153.74,153.7,12.12434423]
[1745581035364,6.503,153.73,153.7,5.62054423]
[1745581035674,6.503,153.73,153.7,12.12444423]
[1745581036178,6.5035,153.72,153.68,6.5046]
[1745581036375,6.5035,153.72,153.68,5.62054423]
[1745581036571,5.62054423,153.73,153.68,5.62054423]
[1745581036772,12.12364423,153.73,153.69,12.12484423]
[1745581037874,24.52,153.75,153.71,5.62054423]
[1745581038081,24.52,153.75,153.72,5.62054423]
[1745581038378,6.5026,153.74,153.71,12.12384423]
[1745581038578,30.14054423,153.75,153.7,5.62054423]
[1745581038976,6.5028,153.73,153.7,5.62054423]
[1745581039174,5.62054423,153.73,153.67,2.0109]
[1745581039478,6.5034,153.72,153.69,12.12474423]
[1745581040177,6.5034,153.72,153.69,6.5042]
[1745581041477,12.12364423,153.73,153.7,6.5038]
[1745581041780,6.5031,153.73,153.7,6.5038]
[1745581042879,6.5031,153.73,153.7,12.12434423]
[1745581043279,6.5033,153.72,153.7,12.12434423]
[1745581043779,6.5033,153.72,153.7,6.5038]
[1745581043981,6.5033,153.72,153.69,6.5043]
[1745581044479,5.62054423,153.73,153.69,6.5043]
[1745581044480,6.5026,153.74,153.69,5.62054423]
[1745581044777,12.12314423,153.74,153.7,5.62054423]
[1745581045382,6.5029,153.73,153.71,6.5035]
[1745581045980,6.5025,153.74,153.71,6.5035]
[1745581046274,5.62054423,153.74,153.7,12.12444423]
[1745581046678,6.5028,153.73,153.71,6.5036]
[1745581047077,12.12334423,153.73,153.66,2.019]
[1745581047381,12.12334423,153.73,153.7,6.5039]
[1745581048176,6.504,153.7,153.69,5.62054423]
[1745581048482,5.62054423,153.71,153.67,5.62054423]
[1745581048676,24.52,153.75,153.67,5.62054423]
[1745581048980,5.62054423,153.73,153.69,5.62054423]
[1745581049679,6.5033,153.72,153.69,12.12474423]
[1745581049980,12.12384423,153.72,153.69,12.12474423]
[1745581050579,30.14054423,153.75,153.71,5.62054423]
[1745581050779,5.62054423,153.78,153.74,5.62054423]
[1745581050978,1.8547,153.79,153.75,12.12224423]
[1745581051180,6.501,153.78,153.75,12.12224423]
[1745581051779,6.501,153.78,153.76,6.5015]
[1745581051980,13.97564423,153.79,153.76,6.5015]
[1745581052380,7.47524423,153.79,153.75,5.62054423]
[1745581053183,5.62054423,153.78,153.75,6.5017]
[1745581053582,6.501,153.78,153.75,6.5017]
[1745581053785,6.501,153.78,153.75,12.12224423]
[1745581054083,5.62054423,153.78,153.74,5.62054423]
[1745581054283,5.62054423,153.78,153.69,3.7801]
[1745581054487,1.8547,153.79,153.73,5.62054423]
[1745581054781,5.62054423,153.78,153.74,5.62054423]
[1745581055086,5.62054423,153.78,153.75,6.5017]
[1745581055380,5.62054423,153.78,153.74,5.62054423]
[1745581055585,6.5012,153.77,153.75,6.5019]
[1745581055790,5.62054423,153.78,153.75,6.5019]
[1745581056086,6.5011,153.77,153.75,6.5019]
[1745581056586,6.5011,153.77,153.74,12.12274423]
[1745581057088,6.5016,153.76,153.74,12.12274423]
[1745581057283,6.5016,153.76,153.74,6.5022]
[1745581057483,6.5016,153.76,153.73,12.12314423]
[1745581057785,6.5016,153.76,153.73,5.62054423]
[1745581058186,6.5019,153.75,153.69,3.7801]
[1745581058385,6.5019,153.75,153.72,5.62054423]
[1745581058583,5.62054423,153.76,153.72,5.62054423]
[1745581058887,6.5024,153.75,153.72,5.62054423]
[1745581059385,6.5024,153.75,153.72,12.12354423]
[1745581059985,6.5024,153.74,153.72,5.62054423]
[1745581060186,30.34054423,153.76,153.72,5.62054423]
[1745581060484,6.5023,153.75,153.72,12.12364423]
[1745581060685,30.34054423,153.76,153.72,12.12364423]
[1745581061188,6.5026,153.74,153.72,5.62054423]
[1745581061587,30.34054423,153.76,153.72,5.62054423]
[1745581062390,24.72,153.76,153.74,5.62054423]
[1745581062592,24.72,153.76,153.73,5.62054423]
[1745581062890,24.72,153.76,153.69,3.7801]
[1745581063091,30.34054423,153.76,153.72,5.62054423]
[1745581063493,6.5024,153.75,153.72,12.12364423]
[1745581063693,30.34054423,153.76,153.72,6.5031]
[1745581064093,6.5022,153.75,153.72,6.5031]
[1745581064392,12.12274423,153.75,153.72,6.5031]
[1745581064595,36.84224423,153.76,153.72,5.62054423]
[1745581064789,24.72,153.76,153.72,5.62054423]
[1745581066092,24.72,153.76,153.69,3.7801]
[1745581066299,5.62054423,153.75,153.71,5.62054423]
[1745581066791,6.5026,153.74,153.71,12.12394423]
[1745581067095,6.5026,153.74,153.71,5.62054423]
[1745581068296,6.5026,153.74,153.72,6.5032]
[1745581070996,12.12264423,153.75,153.72,6.5032]
[1745581071298,6.5021,153.75,153.72,12.12374423]
[1745581071501,6.5021,153.75,153.73,6.5026]
[1745581071696,24.72,153.79,153.74,5.62054423]
[1745581071897,492.66,153.82,153.77,12.12124423]
[1745581072096,30.40054423,153.82,153.78,5.62054423]
[1745581072298,6.4995,153.81,153.79,5.62054423]
[1745581072899,24.78,153.82,153.79,5.62054423]
[1745581073796,6.4998,153.8,153.78,12.12094423]
[1745581074503,6.4996,153.81,153.78,12.12094423]
[1745581075998,24.78,153.82,153.79,5.62054423]
[1745581076206,5.62054423,153.87,153.81,5.62054423]
[1745581076498,6.4974,153.86,153.83,5.62054423]
[1745581076694,24.78,153.88,153.85,5.62054423]
[1745581076897,30.40054423,153.88,153.8,24.78]
[1745581077097,6.4974,153.86,153.83,5.62054423]
[1745581077603,6.4976,153.86,153.83,5.62054423]
[1745581077804,6.4976,153.86,153.82,6.4987]
[1745581077805,6.4976,153.86,153.82,12.11924423]
[1745581078506,24.78,153.88,153.8,24.78]
[1745581078507,24.78,153.88,153.84,5.62054423]
[1745581078706,0.24375,153.89,153.86,5.62054423]
[1745581079006,5.86429423,153.89,153.85,5.62054423]
[1745581079303,6.4967,153.88,153.85,5.62054423]
[1745581079605,6.4967,153.88,153.85,12.11814423]
[1745581079903,5.86429423,153.89,153.85,12.11814423]
[1745581080305,6.4968,153.88,153.85,12.11814423]
[1745581082510,12.36039423,153.89,153.86,6.4972]
[1745581082708,6.73985,153.89,153.85,5.62054423]
[1745581082908,6.73985,153.89,153.86,5.62054423]
[1745581083111,6.73985,153.89,153.86,12.11754423]
[1745581083807,6.4965,153.88,153.86,5.62054423]
[1745581084005,6.4965,153.88,153.85,12.11804423]
[1745581084208,0.24375,153.89,153.85,5.62054423]
[1745581084410,5.62054423,153.86,153.81,7.57334423]
[1745581084606,5.62054423,153.85,153.8,24.78]
[1745581084807,12.11894423,153.84,153.81,6.4992]
[1745581085106,5.62054423,153.84,153.8,5.62054423]
[1745581085307,5.62054423,153.84,153.81,5.62054423]
[1745581085707,5.62054423,153.82,153.78,5.62054423]
[1745581086210,5.62054423,153.82,153.79,6.5002]
[1745581086412,5.62054423,153.83,153.79,5.62054423]
[1745581086607,12.11804423,153.86,153.81,5.62054423]
[1745581086905,5.62054423,153.86,153.82,5.62054423]
[1745581087206,12.11804423,153.86,153.83,6.4982]
[1745581087608,5.62054423,153.84,153.79,5.62054423]
[1745581087809,12.11934423,153.83,153.8,6.4996]
[1745581088108,5.62054423,153.84,153.79,5.62054423]
[1745581088410,6.4982,153.84,153.81,6.4991]
[1745581088603,5.62054423,153.85,153.8,5.62054423]
[1745581088907,6.4988,153.83,153.79,5.62054423]
[1745581090312,6.4988,153.83,153.8,6.4996]
[1745581090512,6.4983,153.84,153.81,5.62054423]
[1745581090811,5.62054423,153.85,153.77,28.5523]
[1745581091106,5.62054423,153.83,153.78,5.62054423]
[1745581091311,30.40054423,153.84,153.79,5.62054423]
[1745581091510,5.62054423,153.83,153.79,5.62054423]
[1745581092010,6.4992,153.82,153.79,12.12054423]
[1745581092214,5.62054423,153.82,153.78,5.62054423]
[1745581092413,5.62054423,153.79,153.75,6.5018]
[1745581092613,12.12144423,153.78,153.75,6.5018]
[1745581092814,5.62054423,153.77,153.73,5.62054423]
[1745581093114,6.5018,153.76,153.73,6.5025]
[1745581093609,6.5018,153.76,153.74,6.5023]
[1745581093809,5.62054423,153.77,153.74,6.5023]
[1745581094114,5.62054423,153.78,153.74,6.5023]
[1745581094309,6.5012,153.77,153.74,6.5023]
[1745581094510,12.12174423,153.77,153.74,6.5023]
[1745581094719,5.62054423,153.76,153.73,6.5026]
[1745581095010,5.62054423,153.76,153.72,5.62054423]
[1745581095317,5.62054423,153.76,153.74,6.5021]
[1745581096615,12.12214423,153.76,153.73,6.5026]
[1745581097112,5.62054423,153.76,153.72,5.62054423]
[1745581097316,5.62054423,153.78,153.73,5.62054423]
[1745581097520,5.62054423,153.78,153.74,5.62054423]
[1745581097921,6.5011,153.77,153.74,12.12274423]
[1745581098222,5.62054423,153.77,153.73,5.62054423]
[1745581098417,5.62054423,153.75,153.71,30.40054423]
[1745581098622,5.62054423,153.75,153.71,24.78]
[1745581098923,5.62054423,153.75,153.7,7.64104423]
[1745581099424,12.12314423,153.74,153.71,6.5034]
[1745581099721,5.62054423,153.74,153.7,7.64104423]
[1745581100122,5.62054423,153.74,153.72,6.5029]